fUSD/lending_fUSD_20260228
["ID","MTS","AMOUNT","RATE_DAILY","PERIOD"]
[406869333,1772254243025,-150.0,0.00016,2]
[406869334,1772254243035,-150.0,0.00016,2]
[406869335,1772254243044,-1600.0,0.000161,2]
[406869336,1772254243053,-9999.99,0.00016116,2]
[406869337,1772254243063,-1015.21,0.000163,3]
[406869338,1772254243072,-1295.0,0.00016438,2]
[406869339,1772254243081,-266.81662109,0.00016438,2]
[406869340,1772254243090,-1487.0338117,0.00016438,2]
[406869341,1772254243099,-3000.0,0.00016438,2]
[406869342,1772254243108,-2295.1037872,0.00016438,2]
[406869343,1772254243117,-5817.69894244,0.00016485,3]
[406869344,1772254243126,-1295.0,0.00016493,2]
[406869345,1772254243135,-1295.0,0.00016548,2]
[406869346,1772254243146,-2807.93466373,0.0001657,2]
[406869347,1772254243155,-1295.0,0.00016602,2]
[406869348,1772254243164,-1295.0,0.00016657,2]
[406869349,1772254243174,-307.20133331,0.00016682,2]
[406869350,1772254243183,-1295.0,0.00016712,2]
[406869351,1772254243192,-308.99,0.00016731,2]
[406869352,1772254243202,-1295.0,0.00016767,2]
[406869353,1772254243211,-2000.0,0.0001681,2]
[406869354,1772254243221,-1295.0,0.00016822,2]
[406869355,1772254243231,-7322.32814893,0.00016854,2]
[406869356,1772254243240,-1000.0,0.00016865,7]
[406869357,1772254243250,-28503.88881026,0.00016865,2]
[406869358,1772254243259,-1295.0,0.00016876,2]
[406869359,1772254243269,-2000.0,0.0001691,2]
[406869360,1772254243279,-1295.0,0.00016931,2]
[406869361,1772254243288,-200.15445162,0.00016983,2]
[406869362,1772254243297,-1295.0,0.00016986,2]
[406869363,1772254243416,-3500.0,0.00016986,2]
[406869364,1772254243426,-2000.0,0.0001701,2]
[406869365,1772254243436,-1295.0,0.00017041,2]
[406869366,1772254243445,-1295.0,0.00017096,2]
[406869367,1772254243455,-267.46074303,0.00017099,2]
[406869368,1772254243465,-5507.95366483,0.000171,2]
[406869369,1772254243475,-1295.0,0.0001715,2]
[406869370,1772254243484,-1295.0,0.00017205,2]
[406869371,1772254243493,-353.32081147,0.00017234,2]
[406869372,1772254243503,-1295.0,0.0001726,2]
[406869373,1772254243512,-350.0,0.00017299,2]
[406869374,1772254243522,-1295.0,0.00017315,2]
[406869375,1772254243531,-843.93369988,0.00017322,2]
[406869376,1772254243540,-1526.458,0.00017357,2]
[406869377,1772254243550,-177.333,0.00017357,2]
[406869378,1772254243559,-1295.0,0.0001737,2]
[406869379,1772254243568,-350.0,0.00017384,2]
[406869380,1772254243578,-1295.0,0.00017424,2]
[406869381,1772254243587,-150.0,0.00017478,2]
[406869382,1772254243598,-1295.0,0.00017479,2]
[406869383,1772254243607,-344.0,0.00017511,2]
[406869384,1772254243616,-1295.0,0.00017534,2]
[406869385,1772254243625,-3979.36214283,0.00017534,2]
[406869386,1772254243635,-1295.0,0.00017589,2]
[406869387,1772254243644,-344.0,0.00017596,2]
[406869388,1772254243653,-7400.0,0.000176,6]
[406869389,1772254243663,-1103.37193081,0.00017639,2]
[406869390,1772254243672,-1033.08156251,0.00017639,2]
[406869391,1772254243681,-1094.32710266,0.00017639,2]
[406869392,1772254243691,-1067.42245042,0.00017639,2]
[406869393,1772254243700,-1092.66859729,0.00017639,2]
[406869394,1772254243710,-1108.26339663,0.00017639,2]
[406869395,1772254243719,-1034.74401497,0.00017639,2]
[406869396,1772254243729,-1109.02503949,0.00017639,2]
[406869397,1772254243738,-1038.73745479,0.0001764,2]
[406869398,1772254243747,-1027.94632384,0.0001764,2]
[406869399,1772254243756,-1017.30431366,0.0001764,2]
[406869400,1772254243766,-1042.09025632,0.0001764,2]
[406869401,1772254243776,-1007.35724137,0.0001764,2]
[406869402,1772254243785,-1037.02504655,0.0001764,2]
[406869403,1772254243794,-1144.80776798,0.0001764,2]
[406869404,1772254243803,-1086.8122972,0.0001764,2]
[406869405,1772254243812,-1066.96142636,0.0001764,2]
[406869406,1772254243821,-1131.30989362,0.0001764,2]
[406869407,1772254243830,-1028.94026998,0.0001764,2]
[406869408,1772254243839,-1102.31150372,0.0001764,2]
[406869409,1772254243848,-1005.57484294,0.0001764,2]
[406869410,1772254243857,-1082.57040392,0.0001764,2]
[406869411,1772254243867,-1017.77893571,0.0001764,2]
[406869412,1772254243876,-1055.82043008,0.0001764,2]
[406869413,1772254243885,-1295.0,0.00017643,2]
[406869414,1772254243895,-277.35679052,0.00017647,2]
[406869415,1772254243904,-344.0,0.00017652,2]
[406869416,1772254243913,-1310.69339842,0.00017698,2]
[406869417,1772254243923,-1400.0,0.000177,6]
[406869418,1772254243932,-344.0,0.00017778,2]
[406869419,1772254243942,-1400.0,0.000178,6]
[406869420,1772254243951,-500.0,0.00017807,2]
[406869421,1772254243960,-500.0,0.00017807,2]
[406869422,1772254243969,-500.0,0.00017807,2]
[406869423,1772254243979,-281.09297896,0.00017807,2]
[406869424,1772254243988,-180.4202576,0.00017807,2]
[406869425,1772254243997,-5000.0,0.00017808,2]
[406869426,1772254244006,-500.0,0.00017808,2]
[406869427,1772254244015,-500.0,0.00017808,2]
[406869428,1772254244025,-500.0,0.00017808,2]
[406869429,1772254244034,-500.0,0.00017808,2]
[406869430,1772254244043,-500.0,0.00017808,2]
[406869431,1772254244053,-500.0,0.00017808,2]
[406869432,1772254244062,-500.0,0.00017808,2]
[406869433,1772254244071,-459.65440741,0.00017808,2]
[406869434,1772254244080,-500.0,0.00017808,2]
[406869435,1772254244089,-500.0,0.00017808,2]
[406869436,1772254244099,-500.0,0.00017808,2]
[406869437,1772254244107,-500.0,0.00017808,2]
[406869438,1772254244117,-500.0,0.00017808,2]
[406869439,1772254244126,-500.0,0.00017808,2]
[406869440,1772254244135,-500.0,0.00017808,2]
[406869441,1772254244144,-500.0,0.00017808,2]
[406869442,1772254244154,-500.0,0.00017808,2]
[406869443,1772254244163,-500.0,0.00017808,2]
[406869444,1772254244172,-500.0,0.00017808,2]
[406869445,1772254244181,-571.75808518,0.00017808,2]
[406869446,1772254244190,-500.0,0.00017808,2]
[406869447,1772254244200,-800.0,0.00017808,2]
[406869448,1772254244209,-344.0,0.00017814,2]
[406869449,1772254244218,-280.11464,0.0001782,2]
[406869450,1772254244228,-280.11464,0.0001782,2]
[406869451,1772254244237,-350.0,0.00017821,2]
[406869452,1772254244246,-500.0,0.00017829,2]
[406869453,1772254244255,-830.3,0.00017829,2]
[406869454,1772254244263,-864.47,0.00017829,2]
[406869455,1772254244272,-500.0,0.00017829,2]
[406869456,1772254244281,-500.0,0.00017829,2]
[406869457,1772254244290,-140156.87642438,0.0001783,2]
[406869458,1772254244299,-1000.0,0.00017855,2]
[406869459,1772254244308,-733.851,0.00017855,2]
[406869460,1772254244317,-344.0,0.00017856,2]
[406869461,1772254244326,-344.0,0.00017861,2]
[406869462,1772254244337,-500.0,0.00017863,2]
[406869463,1772254244350,-25000.0,0.00017874,3]
[406869464,1772254244364,-25000.0,0.00017882,3]
[406869465,1772254244373,-1600.0,0.00017889,2]
[406869466,1772254244384,-344.0,0.0001789,2]
[406869467,1772254244395,-25000.0,0.00017891,3]
[406869468,1772254244405,-1432.94041959,0.00017899,5]
[406869469,1772254244416,-500.0,0.00017899,2]
[406869470,1772254244426,-864.47,0.00017899,2]
[406869471,1772254244435,-500.0,0.00017899,2]
[406869472,1772254244445,-171.61431677,0.00017899,3]
[406869473,1772254244454,-25000.0,0.000179,3]
[406869474,1772254244464,-28503.88881026,0.000179,2]
[406869475,1772254244474,-7322.32814893,0.000179,2]
[406869476,1772254244483,-2807.93466373,0.000179,2]
[406869477,1772254244492,-1400.0,0.000179,6]
[406869478,1772254244502,-1468.05806808,0.000179,2]
[406869479,1772254244511,-8516.81299173,0.000179,2]
[406869480,1772254244520,-6348.35754953,0.000179,2]
[406869481,1772254244529,-296.16829296,0.000179,2]
[406869482,1772254244538,-16091.0,0.000179,2]
[406869483,1772254244548,-500.0,0.00017918,2]
[406869484,1772254244557,-11961.37,0.00017961,2]
[406869485,1772254244567,-504.26225979,0.00017972,2]
[406869486,1772254244576,-150.0,0.00017973,2]
[406869487,1772254244586,-150.0,0.00017973,2]
[406869488,1772254244596,-506.23015856,0.00017982,2]
[406869489,1772254244611,-1557.86610815,0.00017989,2]
[406869490,1772254244626,-1557.86610815,0.0001799,2]
[406869491,1772254244639,-502.46010637,0.00017998,5]
[406869492,1772254244652,-269.917619,0.00017998,5]
[406869493,1772254244663,-279.9045709,0.00017998,5]
[406869494,1772254244676,-151.0,0.00017998,5]
[406869495,1772254244689,-238.05592954,0.00017998,5]
[406869496,1772254244702,-151.0,0.00017998,5]
[406869497,1772254244715,-151.0,0.00017998,5]
[406869498,1772254244727,-151.0,0.00017998,5]
[406869499,1772254244739,-668.65185757,0.00017998,5]
[406869500,1772254244750,-500.0,0.00017998,5]
[406869501,1772254244762,-693.3919763,0.00017998,5]
[406869502,1772254244772,-151.0,0.00017998,5]
[406869503,1772254244785,-500.0,0.00017998,5]
[406869504,1772254244797,-151.0,0.00017998,5]
[406869505,1772254244809,-640.55318202,0.00017998,5]
[406869506,1772254244822,-719.04747942,0.00017998,5]
[406869507,1772254244834,-151.0,0.00017998,5]
[406869508,1772254244847,-745.65223616,0.00017998,5]
[406869509,1772254244860,-151.0,0.00017998,5]
[406869510,1772254244872,-773.2413689,0.00017998,5]
[406869511,1772254244885,-151.0,0.00017998,5]
[406869512,1772254244898,-801.85129955,0.00017998,5]
[406869513,1772254244910,-151.0,0.00017998,5]
[406869514,1772254244922,-831.51979763,0.00017998,5]
[406869515,1772254244935,-151.0,0.00017998,5]
[406869516,1772254244948,-862.28603014,0.00017998,5]
[406869517,1772254244960,-151.0,0.00017998,5]
[406869518,1772254244972,-894.19061326,0.00017998,5]
[406869519,1772254244986,-151.0,0.00017998,5]
[406869520,1772254244999,-927.27566595,0.00017998,5]
[406869521,1772254245011,-961.58486559,0.00017998,5]
[406869522,1772254245023,-157.76865277,0.00017998,5]
[406869523,1772254245034,-500.0,0.00017998,5]
[406869524,1772254245044,-997.16350561,0.00017998,5]
[406869525,1772254245055,-500.0,0.00017998,5]
[406869526,1772254245067,-500.0,0.00017998,5]
[406869527,1772254245081,-500.0,0.00017998,5]
[406869528,1772254245094,-500.0,0.00017998,5]
[406869529,1772254245104,-500.0,0.00017998,5]
[406869530,1772254245114,-500.0,0.00017998,5]
[406869531,1772254245125,-500.0,0.00017998,5]
[406869532,1772254245137,-500.0,0.00017998,5]
[406869533,1772254245150,-500.0,0.00017998,5]
[406869534,1772254245162,-500.0,0.00017998,5]
[406869535,1772254245173,-500.0,0.00017998,5]
[406869536,1772254245185,-500.0,0.00017998,5]
[406869537,1772254245195,-500.0,0.00017998,5]
[406869538,1772254245206,-500.0,0.00017998,5]
[406869539,1772254245217,-500.0,0.00017998,5]
[406869540,1772254245228,-500.0,0.00017998,5]
[406869541,1772254245239,-500.0,0.00017998,5]
[406869542,1772254245251,-151.0,0.00017998,5]
[406869543,1772254245262,-500.0,0.00017998,5]
[406869544,1772254245273,-500.0,0.00017998,5]
[406869545,1772254245285,-156.74932774,0.00017998,5]
[406869547,1772254245298,-500.0,0.00017998,5]
[406869548,1772254245309,-500.0,0.00017998,5]
[406869549,1772254245320,-500.0,0.00017998,5]
[406869550,1772254245331,-500.0,0.00017998,5]
[406869551,1772254245343,-500.0,0.00017998,5]
[406869553,1772254245355,-500.0,0.00017998,5]
[406869554,1772254245366,-500.0,0.00017998,5]
[406869555,1772254245377,-500.0,0.00017998,5]
[406869556,1772254245390,-500.0,0.00017998,5]
[406869557,1772254245402,-500.0,0.00017998,5]
[406869558,1772254245415,-500.0,0.00017998,5]
[406869559,1772254245427,-500.0,0.00017998,5]
[406869560,1772254245438,-500.0,0.00017998,5]
[406869561,1772254245450,-500.0,0.00017998,5]
[406869562,1772254245461,-500.0,0.00017998,5]
[406869563,1772254245472,-500.0,0.00017998,5]
[406869564,1772254245483,-174.61919141,0.00017998,5]
[406869565,1772254245495,-181.08010149,0.00017998,5]
[406869566,1772254245507,-187.78006525,0.00017998,5]
[406869567,1772254245518,-227.3234191,0.00017998,5]
[406869568,1772254245529,-500.0,0.00017998,2]
[406869569,1772254245540,-500.0,0.00017998,2]
[406869570,1772254245551,-536.88822607,0.00017998,2]
[406869571,1772254245563,-1432.9404196,0.00017999,5]
[406869572,1772254245575,-11782.4076065,0.00017999,2]
[406869573,1772254245587,-153.65609125,0.00017999,2]
[406869574,1772254245598,-276.58096425,0.00017999,2]
[406869575,1772254245610,-419.88132827,0.00017999,2]
[406869576,1772254245621,-500.0,0.00017999,2]
[406869577,1772254245632,-500.0,0.00017999,2]
[406869578,1772254245643,-500.0,0.00017999,2]
[406869579,1772254245654,-500.0,0.00017999,2]
[406869580,1772254245665,-648.3262986,0.00017999,2]
[406869581,1772254245676,-5290.0982841,0.00017999,2]
[406869582,1772254245687,-6103.9595586,0.00017999,2]
[406869583,1772254245699,-830.3,0.00017999,2]
[406869584,1772254245710,-830.3,0.00017999,2]
[406869585,1772254245721,-830.3,0.00017999,2]
[406869586,1772254245732,-830.3,0.00017999,2]
[406869587,1772254245743,-830.3,0.00017999,2]
[406869588,1772254245754,-830.35348064,0.00017999,2]
[406869589,1772254245765,-14603.6278399,0.00017999,2]
[406869590,1772254245776,-864.47,0.00017999,2]
[406869591,1772254245787,-864.47,0.00017999,2]
[406869592,1772254245798,-864.47,0.00017999,2]
[406869593,1772254245810,-864.47,0.00017999,2]
[406869594,1772254245822,-864.47,0.00017999,2]
[406869595,1772254245832,-864.47,0.00017999,2]
[406869596,1772254245843,-864.53521615,0.00017999,2]
[406869597,1772254245856,-302831.6757644,0.00017999,2]
[406869599,1772254245868,-3985.5816364,0.00017999,2]
[406869602,1772254245880,-300.0,0.00017999,2]
[406869604,1772254245890,-292.6907697,0.00017999,2]
[406869606,1772254245900,-319.40301856,0.00017999,2]
[406869608,1772254245909,-323.52915924,0.00017999,2]
[406869610,1772254245918,-195.66587194,0.00017999,2]
[406869612,1772254245927,-5810107.48418099,0.00018,2]
[406869634,1772254246202,-6360.0,0.00018,2]
[406869635,1772254246266,-1246.94314593,0.00018,2]
[406869636,1772254246277,-392.6647534,0.00018,2]
[406869637,1772254246291,-6378305.95916277,0.00018,2]
[406869638,1772254246300,-71186.9762503,0.00018,2]
[406869639,1772254246309,-151.0,0.00018,2]
[406869640,1772254246319,-257.33277415,0.00018,2]
[406869641,1772254246328,-200.0,0.00018,2]
[406869642,1772254246337,-151.0,0.00018,2]
[406869644,1772254246350,-150.0,0.00018,7]
[406869646,1772254246359,-153.089004,0.00018,2]
[406869648,1772254246368,-151.111744,0.00018,2]
[406869650,1772254246377,-155.671451,0.00018,2]
[406869651,1772254246386,-151.0,0.00018,2]
[406869653,1772254246396,-200.0,0.00018,2]
[406869655,1772254246405,-151.000016,0.00018,2]
[406869657,1772254246415,-151.0,0.00018,2]
[406869659,1772254246424,-151.0,0.00018,2]
[406869661,1772254246434,-151.0,0.00018,2]
[406869663,1772254246443,-151.0,0.00018,2]
[406869665,1772254246452,-273.196944,0.00018,2]
[406869667,1772254246462,-280.11464,0.00018,2]
[406869670,1772254246471,-280.11464,0.00018,2]
[406869671,1772254246480,-280.11464,0.00018,2]
[406869673,1772254246489,-280.11464,0.00018,2]
[406869676,1772254246499,-151.0,0.00018,2]
[406869678,1772254246509,-151.0,0.00018,2]
[406869679,1772254246517,-151.0,0.00018,2]
[406869681,1772254246526,-151.0,0.00018,2]
[406869683,1772254246536,-186.246657,0.00018,2]
[406869685,1772254246545,-151.0,0.00018,2]
[406869687,1772254246554,-190.6568,0.00018,2]
[406869689,1772254246563,-151.0,0.00018,2]
[406869691,1772254246572,-151.0,0.00018,2]
[406869693,1772254246582,-288.1281186,0.00018028,2]
[406869695,1772254246591,-344.0,0.00018031,2]
[406869697,1772254246600,-197.0,0.00018059,2]
[406869699,1772254246610,-204.0,0.00018063,2]
[406869701,1772254246619,-6386.97274724,0.00018072,3]
[406869703,1772254246629,-197.0,0.00018129,2]
[406869705,1772254246638,-344.0,0.00018155,2]
[406869707,1772254246647,-204.0,0.00018165,2]
[406869709,1772254246657,-200.0,0.0001818,2]
[406869710,1772254246666,-200.0,0.0001818,2]
[406869711,1772254246675,-364.15683999,0.00018195,2]
[406869712,1772254246685,-854.0,0.0001824,2]
[406869713,1772254246694,-204.0,0.00018255,2]
[406869714,1772254246704,-258.0,0.00018328,2]
[406869715,1772254246713,-204.0,0.00018358,2]
[406869716,1772254246722,-200.0,0.00018362,2]
[406869717,1772254246731,-200.0,0.00018362,2]
[406869718,1772254246740,-222.34,0.00018381,2]
[406869719,1772254246749,-204.0,0.00018408,2]
[406869720,1772254246758,-1013.0,0.00018442,2]
[406869721,1772254246767,-350.0,0.00018492,2]
[406869722,1772254246777,-166.66,0.000185,2]
[406869723,1772254246787,-258.0,0.00018525,2]
[406869724,1772254246796,-200.0,0.00018545,2]
[406869725,1772254246805,-854.0,0.00018574,2]
[406869726,1772254246814,-350.0,0.0001868,2]
[406869727,1772254246824,-222.33702292,0.00018691,2]
[406869728,1772254246833,-350.0,0.00018728,2]
[406869729,1772254246842,-200.0,0.00018731,2]
[406869730,1772254246851,-350.0,0.00018781,2]
[406869731,1772254246860,-854.0,0.00018787,2]
[406869732,1772254246870,-234.81487648,0.000189,2]
[406869733,1772254246879,-243.81,0.000189,7]
[406869734,1772254246888,-800.92398376,0.00018904,2]
[406869735,1772254246899,-350.0,0.00018926,2]
[406869736,1772254246909,-258.0,0.00018927,2]
[406869737,1772254246918,-258.0,0.00018928,2]
[406869738,1772254246927,-300.0,0.00018999,2]
[406869739,1772254246937,-33041.0177268,0.00019,2]
[406869740,1772254246946,-170.19413525,0.00019,2]
[406869741,1772254246956,-350.0,0.00019,2]
[406869742,1772254246965,-166.66,0.00019111,2]
[406869743,1772254246975,-175.84691997,0.00019145,3]
[406869744,1772254246984,-209.877326,0.00019178,2]
[406869745,1772254246993,-202.26203221,0.00019257,3]
[406869746,1772254247003,-197.39362209,0.00019311,3]
[406869747,1772254247012,-1045.317,0.0001947,2]
[406869748,1772254247021,-162.996,0.0001947,2]
[406869749,1772254247031,-639.821,0.0001947,2]
[406869750,1772254247041,-1345.199,0.0001947,2]
[406869751,1772254247050,-3512.748,0.0001947,2]
[406869752,1772254247060,-150.798,0.0001947,2]
[406869753,1772254247069,-1301.978,0.0001947,2]
[406869754,1772254247078,-413.0,0.0001947,2]
[406869755,1772254247087,-4574.0,0.0001947,2]
[406869756,1772254247097,-2457.0,0.0001947,2]
[406869757,1772254247106,-350.0,0.00019608,2]
[406869758,1772254247115,-6789.35808577,0.00019659,8]
[406869759,1772254247125,-1600.0,0.00019678,2]
[406869760,1772254247134,-166.66,0.00019722,2]
[406869761,1772254247143,-256.8870596,0.00019726,2]
[406869762,1772254247152,-1000.0,0.0002,30]
[406869763,1772254247162,-201.167663,0.0002,2]
[406869764,1772254247171,-5290.0982841,0.00020089,2]
[406869765,1772254247180,-6103.9595586,0.00020089,2]
[406869766,1772254247190,-2629.0104961,0.000203,2]
[406869767,1772254247201,-15883.9614112,0.00020301,2]
[406869768,1772254247210,-166.66,0.00020332,2]
[406869769,1772254247219,-586.611533,0.00020814,2]
[406869770,1772254247229,-3544.1908534,0.00020815,2]
[406869771,1772254247238,-300.0,0.00020832,2]
[406869772,1772254247247,-3258.5098186,0.00020833,2]
[406869773,1772254247260,-67570.8803113,0.00020833,2]
[406869774,1772254247269,-889.3034688,0.00020833,2]
[406869775,1772254247278,-166.66,0.00020943,2]
[406869776,1772254247287,-6938.03353878,0.00021246,10]
[406869777,1772254247297,-727.0718176,0.00021465,2]
[406869778,1772254247306,-15077.1013452,0.00021465,2]
[406869779,1772254247315,-198.4304254,0.00021465,2]
[406869780,1772254247324,-1600.0,0.00021467,2]
[406869781,1772254247333,-166.66,0.00021554,2]
[406869782,1772254247346,-179.08,0.00021918,30]
[406869783,1772254247355,-5000.0,0.00021918,2]
[406869784,1772254247364,-5290.0982841,0.00022179,2]
[406869785,1772254247374,-6103.9595586,0.00022179,2]
[406869786,1772254247384,-7135.71,0.00022279,2]
[406869787,1772254247394,-618.0,0.0002247,2]
[406869788,1772254247404,-1340.0,0.0002247,2]
[406869789,1772254247415,-150.0,0.0002247,2]
[406869790,1772254247425,-1277.0,0.0002247,2]
[406869791,1772254247434,-413.0,0.0002247,2]
[406869792,1772254247444,-4574.0,0.0002247,2]
[406869793,1772254247454,-203.18,0.000225,14]
[406869794,1772254247463,-7493.5324282,0.00022834,15]
[406869795,1772254247473,-160.0,0.00023,2]
[406869796,1772254247482,-1539.14,0.00023352,2]
[406869797,1772254247492,-5290.0982841,0.00024269,2]
[406869798,1772254247502,-6103.9595586,0.00024269,2]
[406869799,1772254247512,-3662.3757351,0.00024271,2]
[406869800,1772254247521,-9103.07378232,0.00024421,18]
[406869801,1772254247531,-1000.0,0.00024658,2]
[406869802,1772254247541,-1000.0,0.00025,30]
[406869803,1772254247550,-618.0,0.0002547,2]
[406869804,1772254247559,-1340.0,0.0002547,2]
[406869805,1772254247569,-1277.0,0.0002547,2]
[406869806,1772254247578,-379.36,0.0002547,2]
[406869807,1772254247587,-431.937,0.0002547,2]
[406869808,1772254247597,-9232.5800871,0.00026008,21]
[406869809,1772254247607,-260.54,0.00027397,2]
[406869810,1772254247617,-10712.61513645,0.00027595,26]
[406869811,1772254247626,-160.0,0.00028,10]
[406869812,1772254247635,-1000.0,0.00028214,2]
[406869813,1772254247646,-1000.0,0.00028488,2]
[406869814,1772254247655,-1000.0,0.00028762,2]
[406869815,1772254247664,-152.0,0.00028909,3]
[406869816,1772254247674,-1000.0,0.00029036,2]
[406869817,1772254247683,-11527.12663543,0.00029182,28]
[406869818,1772254247693,-526.0,0.00029268,10]
[406869819,1772254247705,-869.0,0.00029268,10]
[406869820,1772254247714,-1000.0,0.0002931,2]
[406869821,1772254247724,-1000.0,0.00029584,2]
[406869822,1772254247733,-1000.0,0.00029858,2]
[406869823,1772254247742,-300.0,0.00029999,10]
[406869824,1772254247752,-1000.0,0.0003,30]
[406869825,1772254247761,-1199.49426713,0.0003,30]
[406869826,1772254247770,-50393.0,0.0003,120]
[406869827,1772254247779,-50000.0,0.0003,90]
[406869828,1772254247789,-160.0,0.0003,120]
[406869829,1772254247798,-1605.0,0.00030132,2]
[406869830,1772254247807,-220.46,0.000302,30]
[406869831,1772254247816,-300.0,0.00030719,10]
[406869832,1772254247826,-150.0,0.0003072,2]
[406869833,1772254247835,-3650.2147962,0.0003072,2]
[406869834,1772254247844,-150.0,0.0003072,2]
[406869835,1772254247854,-41146.14233467,0.0003072,2]
[406869836,1772254247863,-150.0,0.0003072,2]
[406869837,1772254247872,-2116.12446439,0.0003072,2]
[406869838,1772254247881,-11865.11330032,0.00030769,30]
[406869839,1772254247890,-11812.67491413,0.00031,3]
[406869840,1772254247900,-824.848314,0.00031065,2]
[406869841,1772254247909,-1772.591538,0.00031065,2]
[406869842,1772254247918,-300.0,0.00031506,10]
[406869843,1772254247927,-25118.25,0.00031507,120]
[406869844,1772254247936,-896.85540865,0.00031719,2]
[406869845,1772254247945,-144107.0,0.0003185,20]
[406869846,1772254247955,-151.0,0.0003185,7]
[406869847,1772254247964,-500.0,0.000319,5]
[406869848,1772254247973,-133995.7482714,0.00032,120]
[406869849,1772254247982,-151.0,0.00032,7]
[406869850,1772254247991,-151.0,0.00032,7]
[406869851,1772254248000,-151.0,0.00032,7]
[406869852,1772254248010,-152.0,0.00032113,4]
[406869853,1772254248019,-150.0,0.00032246,2]
[406869854,1772254248028,-150.0,0.00032302,2]
[406869855,1772254248037,-150.0,0.00032312,2]
[406869856,1772254248047,-150.0,0.00032326,2]
[406869857,1772254248056,-150.0,0.00032328,2]
[406869858,1772254248065,-13414.21919128,0.00032356,30]
[406869859,1772254248075,-150.0,0.00032372,2]
[406869860,1772254248084,-150.0,0.00032404,2]
[406869861,1772254248093,-150.0,0.00032411,2]
[406869862,1772254248104,-150.0,0.00032418,2]
[406869863,1772254248113,-150.0,0.000325,2]
[406869864,1772254248122,-150.0,0.00032517,2]
[406869865,1772254248132,-150.0,0.00032522,2]
[406869866,1772254248141,-150.0,0.0003254,2]
[406869867,1772254248149,-150.0,0.00032543,2]
[406869868,1772254248159,-150.0,0.00032579,2]
[406869869,1772254248168,-150.0,0.00032623,2]
[406869870,1772254248177,-150.0,0.00032685,2]
[406869871,1772254248186,-150.0,0.00032693,2]
[406869872,1772254248195,-2000.0,0.000327,2]
[406869873,1772254248205,-150.0,0.00032761,2]
[406869874,1772254248214,-1033.13865863,0.00032772,2]
[406869875,1772254248223,-150.0,0.00032784,2]
[406869876,1772254248232,-150.0,0.00032785,2]
[406869877,1772254248241,-150.0,0.00032788,2]
[406869878,1772254248250,-150.0,0.00032793,2]
[406869879,1772254248259,-150.0,0.00032812,2]
[406869880,1772254248268,-150.0,0.00032818,2]
[406869881,1772254248277,-150.0,0.00032847,2]
[406869882,1772254248287,-175.83826269,0.000329,3]
[406869883,1772254248296,-625.19,0.000329,14]
[406869884,1772254248306,-144107.0,0.000329,20]
[406869885,1772254248316,-151.0,0.000329,31]
[406869886,1772254248325,-151.0,0.000329,31]
[406869887,1772254248334,-581.29,0.00033,14]
[406869888,1772254248349,-17389.3870886,0.00033,120]
[406869889,1772254248358,-160.0,0.00033,30]
[406869890,1772254248367,-151.0,0.00033,7]
[406869891,1772254248376,-151.0,0.00033,7]
[406869892,1772254248387,-151.0,0.00033,7]
[406869893,1772254248398,-151.0,0.00033,7]
[406869894,1772254248408,-151.0,0.00033,31]
[406869895,1772254248419,-155.44,0.000331,14]
[406869896,1772254248429,-296.86,0.000331,2]